bitfinex-derivatives/quotes_SOLF0:USTF0_20250705
["timestamp","ask_amount","ask_price","bid_price","bid_amount"]
[1751732370241,6.8001,147.02,146.98,202.3018]
[1751732371730,6.8001,147.02,147.0,3.01303833]
[1751732372743,46.34,147.13,147.01,3.01303833]
[1751732372938,3.01303833,147.09,147.05,3.01303833]
[1751732373141,6.7982,147.07,147.05,3.01303833]
[1751732373743,6.7982,147.07,147.03,11.50432914]
[1751732374042,6.7974,147.08,147.04,6.7992]
[1751732375544,6.7969,147.09,147.05,6.7987]
[1751732377645,6.7975,147.08,147.04,6.7991]
[1751732379244,6.7979,147.07,147.03,60.06332914]
[1751732382249,6.7974,147.08,147.04,6.799]
[1751732382453,6.7974,147.08,147.05,4.70472914]
[1751732382648,46.34,147.13,147.06,6.7978]
[1751732382946,6.7967,147.1,147.07,195.58]
[1751732383141,6.7967,147.1,147.07,197.9737]
[1751732385844,6.7962,147.11,147.07,202.67842914]
[1751732387044,6.7962,147.11,147.08,46.3]
[1751732387244,6.7962,147.11,147.08,53.0971]
[1751732387445,6.7956,147.12,147.08,53.0971]
[1751732387744,6.7956,147.12,147.08,46.3]
[1751732387946,6.7956,147.12,147.09,6.7969]
[1751732388446,4.6304494,147.14,147.08,51.00472914]
[1751732388650,7.00924624,147.15,147.08,57.80192914]
[1751732388839,10.24320432,147.14,147.08,57.80192914]
[1751732389039,4.70472914,147.15,147.08,57.80192914]
[1751732389240,4.62909385,147.14,147.08,46.3]
[1751732389440,6.7965,147.1,147.08,46.3]
[1751732390648,6.7961,147.11,147.08,46.3]
[1751732391851,6.7961,147.11,147.08,195.46]
[1751732395039,6.7966,147.1,147.07,2.3937]
[1751732395240,6.7966,147.1,147.08,195.4]
[1751732396246,6.7966,147.1,147.07,2.3937]
[1751732396445,6.7966,147.1,147.07,197.7937]
[1751732397245,4.70472914,147.11,147.07,2.3937]
[1751732397449,4.70472914,147.11,147.07,197.7737]
[1751732398050,6.7973,147.09,147.07,197.7737]
[1751732398247,4.70472914,147.11,147.07,197.7737]
[1751732399347,6.7971,147.09,147.07,197.7737]
[1751732400449,6.7973,147.08,147.07,197.7737]
[1751732400649,4.70472914,147.11,147.06,46.3]
[1751732400854,4.70472914,147.11,147.06,241.66]
[1751732401249,4.70472914,147.1,147.06,241.68]
[1751732402448,13.5893,147.14,147.03,4.5392]
[1751732402750,13.5893,147.14,146.99,46.3]
[1751732402751,8.56934056,147.11,146.99,46.3]
[1751732402953,4.70472914,147.04,147.0,195.52]
[1751732403453,6.8001,147.02,147.0,195.52]
[1751732404162,6.7998,147.03,147.0,195.52]
[1751732405955,6.7998,147.03,147.0,195.54]
[1751732409356,6.7998,147.03,147.01,195.5]
[1751732409552,4.70472914,147.04,147.01,195.5]
[1751732410452,6.7997,147.03,147.01,195.5]
[1751732412559,6.8001,147.02,147.01,195.5]
[1751732413461,6.7999,147.03,147.01,195.5]
[1751732428782,6.85939025,147.08,147.02,3.01288806]
[1751732428982,3.01288806,147.09,147.04,3.01288806]
[1751732429287,6.86088722,147.08,147.05,198.45288806]
[1751732429485,3.01288806,147.09,147.05,198.45288806]
[1751732429784,6.86131803,147.08,147.05,195.44]
[1751732429993,6.7974,147.08,147.05,195.44]
[1751732430193,3.01288806,147.09,147.05,198.45288806]
[1751732430484,3.01288806,147.06,147.05,195.44]
[1751732430679,3.01288806,147.06,147.02,197.842]
[1751732430883,3.01288806,147.05,147.02,197.842]
[1751732431183,9.81188806,147.05,147.02,197.842]
[1751732431878,9.81188806,147.05,147.02,197.742]
[1751732432790,3.01288806,147.07,147.03,3.01288806]
[1751732432989,3.01288806,147.08,147.04,3.01288806]
[1751732433178,4.57329863,147.07,147.04,3.01288806]
[1751732433383,3.01288806,147.08,147.04,3.01288806]
[1751732433585,11.37200034,147.07,147.04,3.01288806]
[1751732433789,6.7978,147.07,147.04,3.01288806]
[1751732434489,6.7978,147.07,147.04,9.81208806]
[1751732435488,6.7978,147.07,147.04,3.01288806]
[1751732435991,6.7978,147.07,147.03,6.7995]
[1751732436380,6.7984,147.06,147.03,6.7995]
[1751732436887,4.70520474,147.1,147.04,6.7992]
[1751732437191,6.798,147.07,147.04,6.7992]
[1751732438383,4.59001595,147.06,147.05,6.7987]
[1751732438585,6.798,147.07,147.05,6.7987]
[1751732442291,6.7974,147.08,147.06,6.7981]
[1751732445201,6.7974,147.08,147.05,6.7985]
[1751732445699,6.7971,147.09,147.04,50.96520474]
[1751732446498,6.7971,147.09,147.06,6.7982]
[1751732448792,6.7971,147.09,147.07,6.7978]
[1751732454808,6.7966,147.1,147.08,6.7972]
[1751732454999,6.7966,147.1,147.06,4.70520474]
[1751732455395,6.7966,147.1,147.07,6.7976]
[1751732456204,6.797,147.09,147.07,6.7976]
[1751732457804,6.797,147.09,147.08,3.00993116]
[1751732458004,6.7966,147.1,147.08,3.00993116]
[1751732458810,6.7969,147.09,147.07,9.80753116]
[1751732460203,6.7969,147.09,147.07,3.00993116]
[1751732460507,6.7973,147.08,147.06,3.00993116]
[1751732460712,3.00993116,147.07,147.04,49.24993116]
[1751732461213,6.7985,147.06,147.04,49.24993116]
[1751732465409,6.7985,147.06,147.04,244.60993116]
[1751732467118,6.7985,147.06,147.04,49.24993116]
[1751732467317,6.7985,147.06,147.04,244.62993116]
[1751732469415,6.7987,147.05,147.04,46.24]
[1751732469619,6.7987,147.05,147.04,241.62]
[1751732469818,6.7987,147.05,147.04,46.24]
[1751732470108,15.52268734,147.05,147.04,46.24]
[1751732470316,6.7993,147.04,147.01,3.00993116]
[1751732470706,6.7993,147.04,147.02,198.36993116]
[1751732471916,6.7989,147.05,147.02,198.38993116]
[1751732474521,6.7993,147.04,147.02,198.38993116]
[1751732475910,6.7993,147.04,147.02,195.38]
[1751732479024,6.7993,147.04,147.02,198.38993116]
[1751732485033,6.7993,147.04,147.03,3.00993116]
[1751732486940,6.7996,147.03,147.02,198.38993116]
[1751732487635,6.7996,147.03,147.02,195.38]
[1751732491739,6.7994,147.04,147.02,195.38]
[1751732497439,6.7994,147.04,147.02,198.38993116]
[1751732502441,6.7996,147.03,147.02,198.38993116]
[1751732502640,3.00993116,147.06,147.02,198.38993116]
[1751732502829,6.7994,147.04,147.02,198.38993116]
[1751732503237,12.97076814,147.1,146.99,49.24993116]
[1751732503238,8.72191747,147.03,146.99,49.24993116]
[1751732503442,6.8003,147.02,147.0,195.38]
[1751732503842,6.8003,147.02,147.01,195.38]
[1751732504344,12.51614546,147.02,147.01,195.38]
[1751732505245,6.8003,147.02,147.01,195.38]
[1751732506143,6.8003,147.02,146.99,49.24993116]
[1751732506347,3.00993116,147.02,147.0,195.38]
[1751732506641,5.7079467,147.01,146.98,49.24993116]
[1751732506837,3.00993116,147.02,146.99,195.38]
[1751732507039,5.70850971,147.01,146.99,195.38]
[1751732507238,3.00993116,147.02,147.0,195.38]
[1751732507442,5.7074662,147.01,147.0,195.38]
[1751732507648,12.5083662,147.01,147.0,195.38]
[1751732508448,12.5083662,147.01,146.98,49.24993116]
[1751732508637,6.8009,147.01,146.99,195.38]
[1751732508836,3.00993116,147.0,146.98,46.24]
[1751732509151,3.00993116,146.99,146.97,195.38]
[1751732509442,3.00993116,147.0,146.94,51.0499]
[1751732509641,8.71361351,146.99,146.95,198.38993116]
[1751732509843,6.8025,146.97,146.95,198.38993116]
[1751732511158,6.8022,146.98,146.95,198.38993116]
[1751732511847,6.8022,146.98,146.96,195.4]
[1751732516653,6.8022,146.98,146.96,195.44]
[1751732519151,6.8022,146.98,146.96,198.44993116]
[1751732519859,6.8022,146.98,146.96,3.00993116]
[1751732520153,8.54674056,147.04,146.97,198.44993116]
[1751732520360,3.00993116,147.02,146.99,3.00993116]
[1751732520851,6.8008,147.01,146.99,3.00993116]
[1751732521752,6.8008,147.01,146.98,3.00993116]
[1751732526365,6.8011,147.0,146.97,202.2422]
[1751732526664,3.00993116,146.98,146.97,195.44]
[1751732526859,9.81223116,146.98,146.94,51.68943116]
[1751732527072,3.00993116,146.98,146.94,58.49303116]
[1751732527271,3.00993116,146.98,146.95,195.42]
[1751732528569,6.8024,146.97,146.95,195.42]
[1751732529974,9.81213116,146.98,146.95,195.42]
[1751732531870,6.8026,146.97,146.94,51.68943116]
[1751732532070,6.30395827,147.03,146.95,195.44]
[1751732532270,3.00993116,146.98,146.95,195.44]
[1751732532470,9.81213116,146.98,146.95,195.44]
[1751732532976,9.81213116,146.98,146.96,195.44]
[1751732538380,9.71213116,146.98,146.96,195.44]
[1751732538578,9.71213116,146.98,146.94,53.0435]
[1751732538780,9.71213116,146.98,146.95,198.44993116]
[1751732539481,6.8022,146.98,146.95,198.44993116]
[1751732540079,9.81213116,146.98,146.95,195.44]
[1751732540479,9.81213116,146.98,146.94,56.05343116]
[1751732540785,9.81213116,146.98,146.95,195.44]
[1751732540995,6.8022,146.98,146.95,195.44]
[1751732543086,6.8022,146.98,146.96,3.00993116]
[1751732543384,3.00993116,147.01,146.97,3.00993116]
[1751732543681,3.00993116,147.01,146.98,195.44]
[1751732543987,6.8013,147.0,146.98,195.44]
[1751732545985,9.81143116,146.99,146.98,195.44]
[1751732546784,6.8015,146.99,146.98,195.44]
[1751732551093,12.47364849,146.99,146.98,195.44]
[1751732555496,15.48357965,146.99,146.98,195.44]
[1751732566600,15.48357965,146.99,146.94,60.63603116]
[1751732566601,15.54980827,146.99,146.94,46.24]
[1751732566802,3.00993116,146.95,146.94,46.24]
[1751732567205,8.78604372,146.95,146.9,46.24]
[1751732567403,10.73889481,146.99,146.91,195.4]
[1751732567404,3.00993116,146.93,146.91,195.4]
[1751732568218,3.00993116,146.92,146.89,2.3751]
[1751732568506,3.00993116,146.91,146.89,197.7751]
[1751732569106,9.81513116,146.91,146.89,197.7751]
[1751732569305,3.00993116,146.9,146.87,46.24]
[1751732569705,3.00993116,146.9,146.87,241.64]
[1751732569907,46.24,146.94,146.88,3.00993116]
[1751732570099,3.00993116,146.9,146.87,46.24]
[1751732570299,9.81573116,146.9,146.87,46.24]
[1751732570500,9.81573116,146.9,146.87,49.24993116]
[1751732570906,9.81573116,146.9,146.87,241.68]
[1751732571307,9.81603116,146.89,146.87,195.44]
[1751732571511,9.81603116,146.89,146.86,195.44]
[1751732571818,3.00993116,146.89,146.86,195.44]
[1751732572307,3.00993116,146.89,146.85,9.81773116]
[1751732572510,3.00993116,146.89,146.86,195.44]
[1751732572714,9.81603116,146.89,146.86,195.44]
[1751732573508,3.00993116,146.89,146.86,195.44]
[1751732574011,3.00993116,146.88,146.83,51.0225]
[1751732574208,3.00993116,146.87,146.84,199.96992654]
[1751732574603,3.00993116,146.87,146.84,4.48992654]
[1751732575014,9.81713116,146.87,146.84,4.48992654]
[1751732575314,3.00993116,146.85,146.84,4.48992654]
[1751732575710,9.81793116,146.85,146.84,4.48992654]
[1751732577014,2.2198,146.88,146.84,4.48992654]
[1751732577210,3.00993116,146.85,146.84,4.48992654]
[1751732577807,2.2198,146.88,146.84,4.48992654]
[1751732577808,4.719609,146.87,146.84,4.48992654]
[1751732578314,4.719609,146.86,146.84,4.48992654]
[1751732578718,4.719609,146.88,146.84,4.48992654]
[1751732579220,6.8071,146.87,146.84,4.48992654]
[1751732580019,11.526309,146.88,146.84,4.48992654]
[1751732580412,4.719609,146.88,146.84,4.48992654]
[1751732581319,6.8071,146.87,146.84,4.48992654]
[1751732581819,50.979609,146.9,146.84,11.29832654]
[1751732582413,4.719609,146.9,146.84,11.29832654]
[1751732582620,6.8067,146.88,146.84,11.29832654]
[1751732583525,6.8071,146.87,146.84,11.29832654]
[1751732584227,6.8067,146.88,146.84,11.29832654]
[1751732584415,6.8067,146.88,146.85,6.8079]
[1751732584914,6.8061,146.89,146.85,4.719609]
[1751732585921,6.8061,146.89,146.86,6.8075]
[1751732591521,46.28,146.91,146.85,4.719609]
[1751732591721,4.719609,146.93,146.85,4.719609]
[1751732592226,6.8055,146.91,146.87,6.8068]
[1751732594027,6.8055,146.91,146.88,6.8065]
[1751732601034,4.719609,146.94,146.88,6.8065]
[1751732601035,6.8057,146.9,146.88,6.8065]
[1751732601536,6.8054,146.91,146.88,6.8065]
[1751732602036,6.8054,146.91,146.87,11.526409]
[1751732602732,4.719609,146.92,146.86,53.1273]
[1751732602926,4.719609,146.9,146.86,46.32]
[1751732603430,6.8071,146.87,146.86,46.32]
[1751732603628,6.8071,146.87,146.84,4.48992654]
[1751732607440,6.8075,146.86,146.84,4.48992654]
[1751732607831,4.719609,146.9,146.84,4.48992654]
[1751732608030,6.808,146.85,146.84,4.48992654]
[1751732608238,7.075809,146.9,146.84,4.48992654]
[1751732608535,6.8069,146.88,146.84,11.29792654]
[1751732609443,6.8069,146.88,146.85,6.8078]
[1751732610241,6.8064,146.89,146.86,6.8075]
[1751732614548,6.8058,146.9,146.85,4.719609]
[1751732614743,5.67173412,146.89,146.85,4.719609]
[1751732615043,6.8058,146.9,146.88,6.8065]
[1751732615240,5.68445918,146.89,146.88,6.8065]
[1751732615637,6.8058,146.9,146.88,6.8065]
[1751732617644,6.8054,146.91,146.88,6.8065]
[1751732617843,12.4416091,146.9,146.88,6.8065]
[1751732618045,6.8054,146.91,146.88,6.8065]
[1751732618243,19.24756288,146.9,146.87,6.8068]
[1751732618544,6.8058,146.9,146.87,6.8068]
[1751732618742,6.8058,146.9,146.86,46.32]
[1751732618944,6.8058,146.9,146.87,6.8068]
[1751732621238,6.8063,146.89,146.86,57.847009]
[1751732621439,4.719609,146.91,146.86,46.32]
[1751732621640,4.719609,146.89,146.84,4.48992654]
[1751732621847,6.8078,146.86,146.84,4.48992654]
[1751732623650,6.8073,146.87,146.84,11.29832654]
[1751732623947,2.3318,146.9,146.84,9.20953554]
[1751732624147,12.46531941,146.89,146.84,9.20953554]
[1751732624341,13.57320292,146.88,146.85,6.8077]
[1751732624542,6.8069,146.88,146.85,6.8077]
[1751732625444,6.8063,146.89,146.86,6.8074]
[1751732626548,6.8059,146.9,146.87,6.807]
[1751732626743,5.68832909,146.89,146.87,6.807]
[1751732626943,6.8059,146.9,146.87,6.807]
[1751732627142,5.68832645,146.89,146.87,6.807]
[1751732627351,6.8059,146.9,146.87,6.807]
[1751732627545,5.68864223,146.89,146.87,6.807]
[1751732627745,6.8059,146.9,146.87,6.807]
[1751732627949,5.68863831,146.89,146.87,6.807]
[1751732628148,6.8059,146.9,146.87,6.807]
[1751732628344,5.68864223,146.89,146.87,6.807]
[1751732628543,6.8059,146.9,146.87,6.807]
[1751732632954,6.8061,146.89,146.87,6.807]
[1751732636659,6.8061,146.89,146.87,6.707]
[1751732637252,6.8061,146.89,146.86,11.527009]
[1751732637461,6.8066,146.88,146.86,6.8074]
[1751732638158,6.8066,146.88,146.85,6.8078]
[1751732642563,4.719609,146.91,146.85,6.8078]
[1751732642863,5.70080504,146.9,146.85,6.8078]
[1751732643170,5.70080504,146.89,146.85,6.8078]
[1751732643367,4.719609,146.91,146.85,6.8078]
[1751732643666,6.8071,146.87,146.85,6.8078]
[1751732645067,6.8068,146.88,146.85,6.8078]
[1751732646269,6.8071,146.87,146.85,6.8078]
[1751732647770,6.8071,146.87,146.86,3.01862257]
[1751732649259,6.8071,146.87,146.85,6.8078]
[1751732649464,6.8071,146.87,146.86,3.01862257]
[1751732650668,6.8068,146.88,146.86,3.01862257]
[1751732652369,6.8068,146.88,146.87,3.01862257]
[1751732652670,12.50711982,146.88,146.87,3.01862257]
[1751732652867,6.8068,146.88,146.87,3.01862257]
[1751732653274,12.50921186,146.88,146.87,3.01862257]
[1751732654376,12.50921186,146.88,146.86,9.82612257]
[1751732654574,6.8068,146.88,146.86,9.82612257]
[1751732655071,6.8068,146.88,146.86,3.01862257]
[1751732655274,3.01862257,146.91,146.86,3.01862257]
[1751732655574,12.47900001,146.9,146.86,3.01862257]
[1751732655774,6.8069,146.88,146.86,3.01862257]
[1751732656575,6.8069,146.88,146.86,3.01854942]
[1751732661079,9.33920685,146.91,146.84,57.65812654]
[1751732661281,3.01854942,146.89,146.84,60.67667596]
[1751732661473,5.70331811,146.88,146.84,60.67667596]
[1751732661674,3.01854942,146.89,146.84,60.67667596]
[1751732661871,5.70336419,146.88,146.84,60.67667596]
[1751732662081,3.01854942,146.89,146.84,57.65812654]
[1751732662382,5.70336679,146.88,146.84,60.67753294]
[1751732662573,4.88938284,146.87,146.84,60.67753294]
[1751732662777,3.0194064,146.89,146.85,3.0194064]
[1751732662977,10.59281773,146.88,146.85,3.0194064]
[1751732663277,4.88938478,146.87,146.85,3.0194064]
[1751732663480,3.0194064,146.89,146.85,3.0194064]
[1751732663678,6.8073,146.87,146.85,3.0194064]
[1751732664678,6.8075,146.86,146.85,3.0194064]
[1751732665982,6.8075,146.86,146.84,60.67753294]
[1751732666184,6.8075,146.87,146.84,60.67753294]
[1751732666480,6.8075,146.87,146.85,3.0194064]
[1751732669078,4.87244819,146.86,146.85,3.0194064]
[1751732669273,10.69378131,146.86,146.85,3.0194064]
[1751732669880,17.50128131,146.86,146.85,3.0194064]
[1751732672092,10.69378131,146.86,146.85,3.0194064]
[1751732673583,10.69378131,146.86,146.85,9.8274064]
[1751732674987,10.69378131,146.86,146.84,57.65812654]
[1751732675190,6.8073,146.87,146.85,3.0194064]
[1751732675390,10.68862745,146.86,146.84,50.84992654]
[1751732675590,6.8073,146.87,146.84,50.84992654]
[1751732675793,10.68785945,146.86,146.84,50.84992654]
[1751732676089,6.8073,146.87,146.84,50.84992654]
[1751732676286,10.69127247,146.86,146.84,50.84992654]
[1751732676482,6.8073,146.87,146.84,50.84992654]
[1751732676685,10.69118105,146.86,146.85,9.8273064]
[1751732682293,6.32065743,146.91,146.88,6.8066]
[1751732682499,2.31036469,146.9,146.88,198.5794064]
[1751732682694,6.8058,146.9,146.88,198.5794064]
[1751732683398,6.8054,146.91,146.89,3.0194064]
[1751732683590,2.3105698,146.9,146.89,3.0194064]
[1751732683786,6.8054,146.91,146.89,3.0194064]
[1751732685488,6.8057,146.9,146.88,195.56]
[1751732685690,6.8057,146.9,146.89,3.0194064]
[1751732686398,6.8057,146.9,146.88,198.5794064]
[1751732686796,6.8061,146.89,146.88,198.5794064]
[1751732689097,6.8061,146.89,146.88,3.0194064]
[1751732689495,6.8066,146.88,146.87,198.5594064]
[1751732690495,6.8066,146.88,146.87,195.54]
[1751732690798,6.8066,146.88,146.87,198.5594064]
[1751732694299,17.48574391,146.88,146.87,198.5594064]
[1751732694895,6.8071,146.87,146.86,3.0194064]
[1751732695098,3.0194064,146.9,146.86,195.54]
[1751732695299,10.67316093,146.89,146.86,195.54]
[1751732695494,6.8071,146.87,146.86,195.54]
[1751732696399,6.8071,146.87,146.85,3.0194064]
[1751732696603,6.8071,146.87,146.85,198.5594064]
[1751732697602,6.8075,146.86,146.85,3.0194064]
[1751732697796,6.8075,146.86,146.85,198.5594064]
[1751732698601,6.8075,146.86,146.85,3.0194064]
[1751732698798,6.8075,146.86,146.85,198.5594064]
[1751732700307,3.0194064,146.91,146.85,205.3673064]
[1751732700604,12.97780471,146.9,146.87,3.0194064]
[1751732700798,6.8069,146.88,146.87,3.0194064]
[1751732700998,17.47135765,146.88,146.87,3.0194064]
[1751732702502,17.4713047,146.88,146.87,3.0194064]
[1751732702805,10.6644047,146.88,146.87,3.0194064]
[1751732702993,6.8063,146.89,146.87,3.0194064]
[1751732703303,6.8063,146.89,146.88,3.0194064]
[1751732703503,17.47085644,146.89,146.88,3.0194064]
[1751732704904,10.66455644,146.89,146.88,3.0194064]
[1751732706101,5.80923035,146.89,146.88,3.0194064]
[1751732706305,6.8058,146.9,146.88,3.0194064]
[1751732707705,4.85427619,146.89,146.86,9.8267064]
[1751732707908,3.0194064,146.91,146.86,9.8267064]
[1751732708096,10.66232925,146.9,146.86,9.8267064]
[1751732708300,10.66232925,146.89,146.86,9.8267064]
[1751732708505,3.0194064,146.91,146.86,9.8267064]
[1751732708709,10.6623278,146.9,146.86,9.8267064]
[1751732708904,3.0194064,146.91,146.86,3.0194064]
[1751732708905,10.6623278,146.89,146.86,3.0194064]
[1751732709106,4.85399638,146.88,146.86,3.0194064]
[1751732709302,3.0194064,146.91,146.86,3.0194064]
[1751732709506,16.00637033,146.9,146.85,198.5394064]
[1751732709809,10.67273486,146.89,146.85,198.5394064]
[1751732710007,10.67273486,146.88,146.85,198.5394064]
[1751732710207,4.86436618,146.87,146.85,3.0194064]
[1751732710507,3.0194064,146.89,146.85,3.0194064]
[1751732710810,10.67794643,146.88,146.85,3.0194064]
[1751732711007,11.67157143,146.87,146.85,3.0194064]
[1751732711307,6.8074,146.87,146.85,3.0194064]
[1751732712407,6.8074,146.87,146.85,198.5394064]
[1751732713610,4.86373235,146.86,146.84,53.78933294]
[1751732713810,3.0194064,146.88,146.84,249.30933294]
[1751732714010,10.65672354,146.87,146.84,53.78933294]
[1751732714210,3.0194064,146.88,146.84,53.78933294]
[1751732714211,17.46462354,146.86,146.84,53.78933294]
[1751732714413,6.8079,146.86,146.84,53.78933294]
[1751732716310,6.8079,146.86,146.84,50.76992654]
[1751732716510,6.8079,146.86,146.84,53.78933294]
[1751732717214,6.8079,146.86,146.84,50.76992654]
[1751732717408,6.8079,146.86,146.84,53.78933294]
[1751732718315,6.8073,146.87,146.84,60.59763294]
[1751732718509,10.63751284,146.86,146.84,60.59763294]
[1751732718709,6.8068,146.88,146.85,9.8271064]
[1751732718907,5.7987868,146.87,146.84,246.28992654]
[1751732719213,6.8064,146.89,146.86,3.0194064]
[1751732719407,10.62718605,146.88,146.86,3.0194064]
[1751732719608,5.79851672,146.87,146.86,3.0194064]
[1751732720010,6.8066,146.88,146.86,9.8269064]
[1751732720518,6.8063,146.89,146.86,9.8269064]
[1751732720716,10.6283294,146.88,146.86,3.0194064]
[1751732721014,3.0194064,146.9,146.86,3.0194064]
[1751732721215,17.43505073,146.89,146.86,3.0194064]
[1751732721418,10.62845073,146.88,146.86,3.0194064]
[1751732721611,6.8066,146.89,146.86,3.0194064]
[1751732721910,10.62854585,146.88,146.86,3.0194064]
[1751732722112,6.8066,146.89,146.86,3.0194064]
[1751732722311,10.62866984,146.88,146.86,3.0194064]
[1751732722513,6.8066,146.89,146.86,9.8269064]
[1751732722705,17.43536611,146.88,146.86,9.8269064]
[1751732722910,6.8066,146.88,146.86,9.8269064]
[1751732724018,6.8064,146.89,146.86,9.8269064]
[1751732724214,10.62911753,146.88,146.87,6.8069]
[1751732724424,10.62911753,146.88,146.86,3.0194064]
[1751732724618,6.8064,146.89,146.86,9.8267064]
[1751732724823,10.62690838,146.88,146.86,9.8267064]
[1751732725021,6.8064,146.89,146.86,9.8267064]
[1751732725215,10.62826441,146.88,146.86,9.8267064]
[1751732725414,6.8064,146.89,146.86,9.8267064]
[1751732725616,4.82929662,146.88,146.86,9.8267064]
[1751732725817,6.8064,146.89,146.86,9.8267064]
[1751732726019,4.83976657,146.88,146.86,9.8267064]
[1751732726321,6.8064,146.89,146.86,9.8267064]
[1751732726513,10.63958698,146.88,146.86,9.8267064]
[1751732726717,6.8064,146.89,146.86,9.8267064]
[1751732726919,10.63959506,146.88,146.86,9.8267064]
[1751732727121,6.8064,146.89,146.86,9.8267064]
[1751732727422,10.63977308,146.88,146.86,9.8267064]
[1751732727725,6.8064,146.89,146.86,9.8267064]
[1751732727925,10.63976019,146.88,146.85,9.8272064]
[1751732728121,3.0194064,146.89,146.85,9.8272064]
[1751732728323,10.63953024,146.88,146.85,9.8272064]
[1751732728622,6.8069,146.88,146.85,9.8272064]
[1751732730134,4.85016901,146.87,146.85,9.8272064]
[1751732730435,6.8069,146.88,146.85,9.8272064]
[1751732730621,4.8502668,146.87,146.86,6.8075]
[1751732730827,4.8502668,146.87,146.86,9.8269064]
[1751732731427,6.8064,146.89,146.86,9.8269064]
[1751732731629,10.65667624,146.88,146.87,3.0194064]
[1751732733036,4.85043493,146.88,146.87,3.0194064]
[1751732733236,10.6571901,146.88,146.85,6.8078]
[1751732733434,4.85043493,146.87,146.85,3.0194064]
[1751732733635,6.8058,146.9,146.87,6.8067]
[1751732733837,10.65852372,146.89,146.88,3.0194064]
[1751732735037,10.65852372,146.89,146.87,9.8261064]
[1751732735232,5.80725334,146.88,146.87,9.8261064]
[1751732735427,10.65928833,146.88,146.87,9.8261064]
[1751732737339,10.65928833,146.88,146.87,9.82454192]
[1751732737741,4.85203499,146.88,146.87,9.82454192]
[1751732737931,92.68085828,146.92,146.87,9.82454192]
[1751732738135,12.9921721,146.91,146.89,3.01784192]
[1751732738338,17.48805196,146.9,146.88,3.01784192]
[1751732738540,10.68215196,146.89,146.88,3.01784192]
[1751732739341,10.68215196,146.89,146.88,3.01762025]
[1751732741635,17.48825196,146.89,146.88,3.01762025]
[1751732744845,11.65744435,146.89,146.88,3.01762025]
[1751732745046,6.8066,146.88,146.86,6.8073]
[1751732745246,6.8066,146.88,146.87,3.01762025]
[1751732745746,6.8063,146.89,146.87,3.01762025]
[1751732746046,6.8063,146.89,146.88,3.01762025]
[1751732746345,10.71438897,146.89,146.84,246.28992654]
[1751732746542,10.71438897,146.88,146.86,3.01762025]
[1751732746742,3.01762025,146.9,146.86,3.01762025]
[1751732746938,10.71431559,146.89,146.86,3.01762025]
[1751732747146,6.807,146.87,146.86,3.01762025]
[1751732747544,6.807,146.87,146.85,3.01762025]
[1751732747938,6.807,146.87,146.84,256.07717624]
[1751732750051,6.807,146.87,146.85,3.01898918]
[1751732751851,6.8076,146.86,146.84,57.57812654]
[1751732752052,3.01898918,146.89,146.84,256.07711572]
[1751732752351,10.69385368,146.88,146.85,3.01898918]
[1751732752552,10.69385368,146.87,146.85,3.01898918]
[1751732752849,3.01898918,146.89,146.85,3.01898918]
[1751732753051,10.69783718,146.88,146.85,3.01898918]
[1751732753250,10.69783718,146.87,146.85,3.01898918]
[1751732753450,3.01898918,146.89,146.85,3.01898918]
[1751732753751,6.8073,146.87,146.85,3.01898918]
[1751732754451,6.8073,146.87,146.84,253.05812654]
[1751732754753,6.8073,146.87,146.85,3.01898918]
[1751732755853,6.8073,146.87,146.84,253.05812654]
[1751732756053,6.8073,146.87,146.85,3.01898918]
[1751732758157,6.8068,146.88,146.85,9.82688918]
[1751732758344,10.6566619,146.87,146.85,9.82688918]
[1751732758549,6.8068,146.88,146.85,9.82688918]
[1751732758851,17.46374875,146.87,146.85,9.82688918]
[1751732759052,6.8071,146.87,146.85,9.82688918]
[1751732761448,6.8068,146.88,146.85,9.82688918]
[1751732761652,10.64377193,146.87,146.85,9.82688918]
[1751732761852,6.8068,146.88,146.85,9.82688918]
[1751732762151,10.64377196,146.87,146.85,9.82688918]
[1751732762348,4.82093969,146.86,146.85,9.82688918]
[1751732762657,4.82093969,146.86,146.84,249.26891572]
[1751732762859,3.01898918,146.88,146.84,249.26891572]